Cogmind - Beta 13 @@@ ROGUE MODE // 2024.04.13 @ 17:01:58 Player: Bearly Playable Result: Destroyed by YI-UF0 with YI-UF0's Doublenader Performance ------------- Evolutions (0) 0 Regions Visited (2) 400 Robots Destroyed (31) 155 Value Destroyed (659) 659 Prototype IDs (0) 0 Alien Tech Used (0) 0 Bonus (8) 8 TOTAL SCORE: 1222 Bonus ------- High Alert Combat Kills 8 Cogmind --------- Core Integrity 0/250 Matter 300/300 Energy 100/100 System Corruption 0% Temperature Cool (0) Movement Walking (190) Ox1 Location -10/Mines Parts ------- > --- POWER (1) -------- (None) > --- PROPULSION (2) --- Aluminum Leg Aluminum Leg > --- UTILITY (2) ------ Large Storage Unit > --- WEAPON (2) ------- Medium Laser > --- INVENTORY (15) --- Light Ion Engine Light Ion Engine Aluminum Leg Aluminum Leg Aluminum Leg Large Storage Unit Signal Interpreter ECM Suite ECM Suite Peak State ------------ > --- POWER ------------ Ion Engine > --- PROPULSION ------- Aluminum Leg Aluminum Leg > --- UTILITY ---------- Small Storage Unit Sensor Array > --- WEAPON ----------- Assault Rifle Grenade Launcher > --- INVENTORY -------- Light Ion Engine Aluminum Leg Aluminum Leg Aluminum Leg Medium Laser Assault Rifle [Rating: 7] Favorites ----------- Power Ion Engine Engine Ion Engine Propulsion Aluminum Leg Leg Aluminum Leg Utility Large Storage Unit Device Sensor Array Storage Large Storage Unit Weapon Assault Rifle Energy Gun Medium Laser Ballistic Gun Assault Rifle Launcher Grenade Launcher Build | -11 -10 -10 ------- Run | Yrd Mat Min Slots Evolved . | . . . Power . | . . . Propulsion . | . . . Utility . | . . . Weapon . | . . . Parts Attached 19 | 6 9 4 Power 4 | 1 2 1 Engine 4 | 1 2 1 Core . | . . . Reactor . | . . . Propulsion 5 | 2 1 2 Treads . | . . . Leg 5 | 2 1 2 Wheel . | . . . Hover . | . . . Flight . | . . . Utility 3 | 1 2 . Device 1 | . 1 . Storage 2 | 1 1 . Processor . | . . . Hackware . | . . . Protection . | . . . Artifact . | . . . Weapon 7 | 2 4 1 Energy Gun 1 | . . 1 Energy Cannon . | . . . Ballistic Gun 4 | 2 2 . Ballistic Cannon . | . . . Launcher 2 | . 2 . Special Weapon . | . . . Impact Weapon . | . . . Slashing Weapon . | . . . Piercing Weapon . | . . . Special Melee Weapon . | . . . Unidentified Prototypes . | . . . Parts Lost 9 | . 4 5 Power 3 | . 1 2 Propulsion 2 | . 1 1 Utility 1 | . 1 . Weapon 3 | . 1 2 Highest Loss Streak 4 | . 2 4 To Critical Strikes . | . . . Average Slot Usage (%) 84 | . 91 69 Engine 13 | . 13 13 Leg 27 | . 27 27 Device 4 | . 6 . Storage 14 | . 14 14 Energy Gun 4 | . . 14 Ballistic Gun 13 | . 20 . Launcher 4 | . 7 . Naked Turns . | . . . Heaviest Build 31 | 14 31 27 Greatest Support 20 | 20 20 20 Greatest Overweight (x) 2 | 2 1 2 Average Overweight (x) . | . . 1 Largest Inventory Capacity 15 | 8 15 15 Average Capacity 11 | 6 10 15 Most Carried 11 | 2 11 11 Average Carried 7 | 1 6 9 Final Capacity 15 | 8 15 15 Final Carried 11 | 2 11 9 Class Distribution -------------------- 100% | Mutant Dominant Class ---------------- Mutant | -10/Materials Mutant | -10/Mines Resources | -11 -10 -10 ----------- Run | Yrd Mat Min Matter Collected 770 | 218 496 56 Remotely . | . . . Salvage Created 721 | . 590 131 Parts 42 | . 36 6 Haulers Intercepted 1 | . 1 . Recyclers Shooed 2 | . 2 . Parts Field Recycled . | . . . Retrieved Matter . | . . . Parts Self-Destructed . | . . . Prevented . | . . . Kills | -11 -10 -10 ------- Run | Yrd Mat Min Combat Hostiles Destroyed 26 | . 21 5 Guns 15 | . 10 5 AOE 11 | . 11 . Classes Destroyed 7 | . 7 . Worker 1 | . 1 . Builder 1 | . 1 . Hauler 1 | . 1 . Recycler 1 | . 1 . Operator 1 | . 1 . Swarmer 12 | . 9 3 Grunt 14 | . 12 2 Best Kill Streak 10 | . 10 3 Combat Bots Only 6 | . 6 3 Max Kills in Single Turn 4 | . 4 1 Gunslinging . | . . . Exploded 3 | . 3 . Melee . | . . . Uniques/NPCs Destroyed . | . . . Combat | -11 -10 -10 -------- Run | Yrd Mat Min Hostile Shots Fired 136 | . 98 38 Missed 41 | . 29 12 Damage Taken 1205 | . 751 454 Core 250 | . 169 81 Absorbed by Shields . | . . . Core Remaining (%) 100 | 100 . . Volleys Fired 79 | . 61 18 Largest 2 | . 2 2 Hottest 50 | . 50 50 Shots Fired 122 | . 102 20 Gun 106 | . 86 20 Cannon . | . . . Launcher 16 | . 16 . Special . | . . . Kinetic 90 | . 86 4 Thermal 16 | . . 16 Explosive 16 | . 16 . Electromagnetic . | . . . Robot Hit Streak 13 | . 8 13 Robot Miss Streak 7 | . 7 3 Penetration Max . | . . . Secondary Targets . | . . . Shots Hit Robots 68 | . 52 16 Core Hits 48 | . 41 7 Critical Kills . | . . . Critical Parts Destroyed . | . . . Critical Strikes . | . . . Melee Attacks . | . . . Impact . | . . . Slashing . | . . . Piercing . | . . . Sneak Attacks . | . . . Combat Hostiles . | . . . Follow-up Attacks . | . . . Damage Inflicted 1877 | . 1676 201 Guns 804 | . 603 201 Cannons . | . . . Explosions 1053 | . 1053 . Melee . | . . . Ramming 20 | . 20 . Kinetic 639 | . 603 36 Thermal 165 | . . 165 Explosive 1053 | . 1053 . Electromagnetic . | . . . Impact . | . . . Slashing . | . . . Piercing . | . . . Highest Corruption . | . . . Average Corruption . | . . . Corruption Purged . | . . . Corruption Blocked . | . . . Overload Shots . | . . . Overflow Damage 44 | . 44 . Projectiles . | . . . Explosions 44 | . 44 . Melee . | . . . Knockbacks 1 | . 1 . Impact 1 | . 1 . Kinetic . | . . . Secondary . | . . . Self-Inflicted Damage 84 | . 84 . Shots 5 | . 5 . Rammed . | . . . Targets Rammed 8 | . 8 . Kicked 8 | . 8 . Crushed . | . . . Highest Temperature 88 | . 9 88 Average Temperature 37 | . 5 45 Received Heat Transfer 318 | . 204 114 Siege Activations . | . . . Robots Corrupted . | . . . Combat Hostiles . | . . . Parts Fried . | . . . Impact Corruptions . | . . . Robots Melted . | . . . Combat Hostiles . | . . . Parts Melted 3 | . . 3 Heat Transferred 481 | . . 481 Parts Sabotaged . | . . . Parts Stolen . | . . . Parts Stripped . | . . . Power Chain Reactions . | . . . Alert | -11 -10 -10 ------- Run | Yrd Mat Min Peak Influence 409 | . 409 179 Initial 99 | . . 99 Average 206 | . 277 105 Maximum Alert Level 2 | . 2 . Low Security (%) 51 | 100 21 100 Level 1 44 | . 72 . Level 2 3 | . 6 . Level 3 . | . . . Level 4 . | . . . Level 5 . | . . . High Security . | . . . Max Security . | . . . Squads Dispatched 4 | . 4 . Investigation 2 | . 2 . Extermination . | . . . Reinforcement 2 | . 2 . Assault . | . . . Garrison . | . . . Intercept . | . . . Searches Triggered . | . . . Construction Impeded . | . . . Haulers Reinforced . | . . . Active Scanning Responses . | . . . Cargo Convoy Interrupts . | . . . Stealth | -11 -10 -10 --------- Run | Yrd Mat Min Distress Signals 1 | . 1 . Communications Jammed . | . . . Distress Signals . | . . . Times Spotted 31 | . 25 6 Peak Tracking Total 4 | . 4 3 Tactical Retreats . | . . . Traps | -11 -10 -10 ------- Run | Yrd Mat Min Traps Triggered 2 | . 2 . Indirectly . | . . . Trap Hack Attempts . | . . . Triggered . | . . . Disarmed . | . . . Reprogrammed . | . . . Reused . | . . . Traps Extracted . | . . . Installed . | . . . Triggered . | . . . Machines | -11 -10 -10 ---------- Run | Yrd Mat Min Machines Disabled 2 | . 2 . Max in Single Turn 1 | . 1 . Machines Repaired . | . . . Machines Dismantled . | . . . Machines Sabotaged . | . . . Overloaded Fab Kills . | . . . Hacking | -11 -10 -10 --------- Run | Yrd Mat Min Machines Accessed 1 | . 1 . Terminals 1 | . 1 . Fabricators . | . . . Repair Stations . | . . . Recycling Units . | . . . Scanalyzers . | . . . Garrison Access . | . . . Total Hacks 2 | . 2 . Successful 2 | . 2 . Failed . | . . . Catastrophic . | . . . Database Lockouts . | . . . Manual . | . . . Terminals 2 | . 2 . Fabricators . | . . . Repair Stations . | . . . Recycling Units . | . . . Scanalyzers . | . . . Garrison Access . | . . . Terminal Hacks 2 | . 2 . Robot Analysis 1 | . 1 . Branch Access Points 1 | . 1 . Fabricator Hacks . | . . . Repair Station Hacks . | . . . Recycling Unit Hacks . | . . . Scanalyzer . | . . . Garrison Access Hacks . | . . . Unauthorized Hacks . | . . . Terminals . | . . . Fabricators . | . . . Repair Stations . | . . . Recycling Units . | . . . Scanalyzers . | . . . Garrison Access . | . . . Data Cores Recovered . | . . . Used . | . . . Hacking Detections 1 | . 1 . Full Trace Events . | . . . Feedback Events . | . . . Feedback Blocked . | . . . Robot Schematics Acquired . | . . . Robots Built . | . . . Authchips . | . . . Time . | . . . Total Robot Build Rating . | . . . Part Schematics Acquired . | . . . Parts Built . | . . . Authchips . | . . . Time . | . . . Total Part Build Rating . | . . . Parts Repaired . | . . . Time . | . . . Parts Recycled . | . . . Recycled Matter . | . . . Retrieved Matter . | . . . Retrieved Components . | . . . Parts Scanalyzed . | . . . Part Schematics Acquired . | . . . Parts Damaged . | . . . Bothacking | -11 -10 -10 ------------ Run | Yrd Mat Min Used RIF Installer . | . . . Robots Hacked . | . . . Non-combat . | . . . Combat . | . . . Robot Hacks Applied . | . . . Relay Couplers Released . | . . . Fabnet Peak Effective % . | . . . Robots Rewired . | . . . Allies Hacked . | . . . Hacks Repelled . | . . . Allies | -11 -10 -10 -------- Run | Yrd Mat Min Total Allies . | . . . Largest Group . | . . . Highest-Rated Group . | . . . Highest-Rated Ally . | . . . Total Orders . | . . . Ally Attacks . | . . . Total Damage . | . . . Kills . | . . . Allies Corrupted . | . . . Allies Melted . | . . . Intel | -11 -10 -10 ------- Run | Yrd Mat Min Robot Analysis Total 1 | . 1 . Derelict Logs Recovered 2 | . . 2 Drone Launches . | . . . Drone Recoveries . | . . . Exploration | -11 -10 -10 ------------- Run | Yrd Mat Min Turns Passed 1408 | 86 876 446 Spaces Moved 717 | 63 444 210 Core 13 | 13 . . Treads . | . . . Legs 704 | 50 444 210 Wheels . | . . . Hover . | . . . Flight . | . . . Fastest Speed 50 | 50 120 190 Average Speed 153 | 118 140 190 Slowest Speed 260 | 150 190 260 Overloaded Moves . | . . . Propulsion Burnouts . | . . . Robots Hopped . | . . . Cave-ins Triggered . | . . . Exploration Rate (%) 33 | 4 58 37 Regions Visited 2 Branch Regions 1 Pre-discovered Areas 1 | . . 1 Known Exits Taken 1 | . 1 . Unknown Exits Taken 1 | 1 . . Scrap Searched . | . . . Spaces Dug . | . . . Terrain Destroyed 81 | . 81 . Melee . | . . . Projectile . | . . . AOE 81 | . 81 . Terrain Rammed . | . . . Walls Destroyed . | . . . Machines Disabled . | . . . Actions | -11 -10 -10 --------- Run | Yrd Mat Min Total 898 | 72 590 236 Wait 56 | . 53 3 Move 715 | 62 443 210 Hop . | . . . Pick Up 19 | 4 14 1 Fast Attach 4 | 4 . . Attach 9 | 2 4 3 Detach . | . . . Swap 6 | . 5 1 Drop 2 | . 2 . Fire 79 | . 61 18 Melee . | . . . Ram . | . . . Kick 8 | . 8 . Crush . | . . . Escape Stasis . | . . . Rewire . | . . . Trap . | . . . Miscellaneous . | . . . Route ------- -11/Scrapyard -10/Materials (discovered 4 exits: [*Mat x2] / *Min x2) -10/Mines (discovered 1 exit: [*Mat]) History --------- Turn | Location | Event 14 | -11/Scrapyard | Discovered new exit (range 16) 87 | -11/Scrapyard | Entered Materials 157 | -10/Materials | Identified exit to Mines 327 | -10/Materials | Build established: Mutant 523 | -10/Materials | Discovered new exit (range 14) 664 | -10/Materials | Core integrity fell below 50% 727 | -10/Materials | Discovered new exit (range 14) 963 | -10/Materials | Entered Mines 1006 | -10/Mines | Lost 4 parts (1p1n2w) 1143 | -10/Mines | Discovered new exit (range 5) 1282 | -10/Mines | Core integrity fell below 20% 1409 | -10/Mines | Destroyed by YI-UF0 with YI-UF0's Doublenader Last Messages --------------- 00976_ Heat Sink melted. 00976_ G-34 Mercenary destroyed. 00985_ G-47 Trooper overheating. 00987_ G-47 Trooper heat damages Lgt. Nuclear Core. 00988_ Particle Gun melted. 00988_ Aluminum Leg melted. 00988_ G-47 Trooper destroyed. 00990_ Acquired 26 matter. 00996_ Acquired Ion Engine. 01000_ K-01 Serf collects debris. 01000_ Acquired 30 matter. 01006_ K-01 Serf collects debris. 01143_ EXIT=FOUND 01171_ Acquired derelict log, extracted data. World map updated: -10/Materials. 01293_ S-10 Pest destroyed. 01365_ Acquired derelict log, extracted data. Data stored: Storage entrances (x1). 01402_ The unstable cave ceiling collapses. 01405_ Ion Engine destroyed. Map ----- +----------------------------------------------------+ | ???##?????## ##?????????????????????????????? | | ??? #????# #?????????????????????????????? | | ?? ????# #?????????????????????????????? | | ?? #?## #?????????????????????????????? | | ??# ## #??####???????????????????????? | | ??# #### ##??????????????????????? | | ??# = % ##?????????????????????? | | ??# % #?????????????????????? | | ??# ## ### #?????????????????????? | | ???# ?? ?## #?## #????????????????????? | | ???# #?? ??## #??## #????????????????????? | | ??? #?# #??## ##????## #????????????????????? | | ???# #?# #???## ##??????? #????# ??????????????? | | ???# #?# #????# ##???????? #???# ????????????? | | #### #?# #????# #?#?#????? #?? ????????????? | | # #?# #????# ### ##??? #?? ???????????? | | # ## #?# #?#### ## ##?? #? g ???????????? | | # ## #?# #?# #?? ## ???????????? | | # ### ### #### ### # #??????????? | | # #???# t ???????????? | | ######### #????# # = ????????????? | | #???????# #?????# % =??? #??????????? | | "" #????#### ###???# ### ???????????? | | "" #????# #???## # #??????????????? | | "" #????# """ ##### #??????????????????? | | "" ###### """ @ # #?????????????????? | | ##*%=* """ #### # #???????????????????? | | ##=### #???# # #???????????????????? | | ##### #?#### ###???# ### ###???????????????????? | | #???# #????# #?????# #?## ##?????????????????????? | | #???# #????# #?????# #??# #??????????????????????? | | #???# ###### #?????# #### #??????????????????????? | | #???# #?????# #??????????????????????? | | #???# ########?????########??????????????????????? | | #???# ###????????????????????????????????????????? | | #???# #????????????????????????????????????????? | | #??## #????????????????????????????????????????? | | #### #????????????????????????????????????????? | | ##????????????????????????????????????????? | | # < # #?????????????????????????????????????????? | | # ## #?????????????????????????????????????????? | | ## ### #?????????????????????????????????????????? | | ?# #?# #?????????????????????????????????????????? | | ?# #?# ?????????????????????????????????????????? | | ?# #?# #?????????????????????????????????????????? | | ## #?# #?????????????????????????????????????????? | | #?# ?????????????????????????????????????????? | | ####??##?????????????????????????????????????????? | | ?????????????????????????????????????????????????? | | ?????????????????????????????????????????????????? | +----------------------------------------------------+ Best States ------------- Heat Dissipation 25 Energy Generation 10 Energy Capacity 250 Matter Stores 300 Matter Capacity 300 Sight Range 16 Robot Scan Range 14 Terrain Scan Density 10 Evasion (%) 55 Item Schematics ----------------- None Robot Schematics ------------------ None Fabricated ------------ Nothing Alien Tech Used ----------------- None Achievements -------------- None Challenges ------------ None Game ------ Seed IntegratedRocketDatajack Manual? 0 Play Time 00:13:05 Cumulative 6.0 hours Start 2024.04.13 @ 16:51:01 End 2024.04.13 @ 17:01:58 Sessions 1 Manual Loads 0 Difficulty Rogue Special Mode None Game No. 17 Rogue 17 Adventurer 0 Explorer 0 Win Type - Total 0 Types 0/0/0/0/0/0/0/0/0 Lore% 5 Gallery% 9 Achievement% 10 Wizard Run 0 Options --------- Layout 1 ASCII 0 Keyboard 0 Movement Arrows Keybinds 0 Fullscreen 1 Font 32/SmallcapsGlow Map View 77x35 Zoom Use 0% Tactical HUD 1 Map Filters NONE Filters NONE Steam 1 RUN: e0eb080a-2d40-4fe7-8cf9-60ebc33ff149